fUSD/lending_fUSD_20260322
["ID","MTS","AMOUNT","RATE_DAILY","PERIOD"]
[408700739,1774145440523,-500.0,0.00015973,2]
[408700740,1774145440532,-500.91620253,0.00015973,2]
[408700741,1774145440542,-350.63807032,0.00015973,2]
[408700742,1774145440551,-500.0,0.00015973,2]
[408700743,1774145440561,-500.0,0.00015973,2]
[408700744,1774145440570,-500.55967201,0.00015973,2]
[408700745,1774145440580,-500.41590344,0.00015973,2]
[408700746,1774145440590,-501.68651941,0.00015973,2]
[408700747,1774145440599,-500.0,0.00015973,2]
[408700748,1774145440609,-500.81874259,0.00015973,2]
[408700749,1774145440618,-500.75202199,0.00015973,2]
[408700750,1774145440628,-500.62577172,0.00015973,2]
[408700751,1774145440637,-500.0,0.00015973,2]
[408700752,1774145440647,-500.0,0.00015973,2]
[408700753,1774145440656,-500.44177829,0.00015973,2]
[408700754,1774145440666,-500.0,0.00015973,2]
[408700755,1774145440675,-500.0,0.00015973,2]
[408700756,1774145440685,-390.12270077,0.00015973,2]
[408700757,1774145440694,-500.0,0.00015973,2]
[408700758,1774145440704,-3528.7732825,0.00015973,2]
[408700759,1774145440713,-25476.0296251,0.00015973,2]
[408700760,1774145440723,-83430.1129057,0.00015973,2]
[408700761,1774145440733,-2220.2679176,0.00015973,2]
[408700762,1774145440743,-151.0,0.00015973,2]
[408700763,1774145440753,-392.943175,0.00015973,2]
[408700764,1774145440763,-392.943175,0.00015973,2]
[408700765,1774145440773,-151.0,0.00015973,2]
[408700766,1774145440783,-392.943175,0.00015973,2]
[408700767,1774145440793,-151.0,0.00015973,2]
[408700768,1774145440804,-392.943175,0.00015973,2]
[408700770,1774145440813,-151.0,0.00015973,2]
[408700772,1774145440822,-151.0,0.00015973,2]
[408700774,1774145440832,-151.0,0.00015973,2]
[408700775,1774145440842,-152.378288,0.00015973,2]
[408700776,1774145440852,-151.0,0.00015973,2]
[408700777,1774145440861,-151.0,0.00015973,2]
[408700779,1774145440872,-151.0,0.00015973,2]
[408700780,1774145440881,-263.634474,0.00015973,2]
[408700781,1774145440891,-1000.0,0.00015978,2]
[408700782,1774145440900,-1000.0,0.00015985,2]
[408700783,1774145440909,-168.0,0.00015989,2]
[408700784,1774145440919,-218.19919069,0.0001599,2]
[408700785,1774145440928,-218.19919069,0.0001599,2]
[408700786,1774145440937,-218.19919069,0.0001599,2]
[408700787,1774145440950,-2403.0,0.00015995,2]
[408700788,1774145440959,-151.0,0.00015997,2]
[408700789,1774145440968,-150.0,0.00015999,2]
[408700790,1774145440978,-1313.58911789,0.00015999,5]
[408700791,1774145440989,-2870.0,0.00016,5]
[408700792,1774145440998,-707508.48399026,0.00016,2]
[408700798,1774145443438,-3760.0,0.0001568,2]
[408700799,1774145443448,-261545.98923584,0.00016,2]
[408700820,1774145446056,-175.99725706,0.00014555,2]
[408700821,1774145446066,-281.137999,0.00015368,7]
[408700822,1774145446075,-3242.86474394,0.00016,2]
[408700823,1774145446165,-290.47709154,0.00016,2]
[408700824,1774145446177,-10717.92312843,0.00016,2]
[408700825,1774145446220,-148586.19057562,0.00016,2]
[408700826,1774145446232,-3165.45,0.00016,2]
[408700831,1774145570569,150.0,0.00012568,2]
[408700832,1774145629419,803.65,0.00012668,2]
[408700833,1774145959672,152.11,7.094e-05,2]
[408700834,1774145959866,152.11,7.511e-05,2]
[408700835,1774145960071,152.11,7.929e-05,2]
[408700836,1774145960271,152.11,8.346e-05,2]
[408700837,1774145960468,152.11,8.763e-05,2]
[408700838,1774145960671,152.11,9.181e-05,2]
[408700839,1774145960869,152.11,9.598e-05,2]
[408700840,1774145961075,152.11,0.00010015,2]
[408700841,1774145961288,152.11,0.00010432,2]
[408700842,1774145961476,152.11,0.0001085,2]
[408700843,1774145961671,152.11,0.00011267,2]
[408700844,1774145961865,152.11,0.00011684,2]
[408700845,1774145962059,152.11,0.00012102,2]
[408700846,1774145962248,152.11,0.00012519,2]
[408700847,1774146275141,3039.22,0.00011507,2]
[408700848,1774146377686,1160.11,0.00017,60]
[408700849,1774146383834,3026.322136,8e-05,2]
[408700850,1774146383856,2407.43238338,8e-05,2]
[408700859,1774146441815,2000.0,0.00012724,2]
[408700860,1774146446128,-6204.107,0.00012771,2]
[408700861,1774146446152,-172.1892,0.00012836,2]
[408700862,1774146446173,-256.0,0.00012936,2]
[408700863,1774146446197,-3131.51939082,0.00012936,2]
[408700864,1774146446216,-250.0,0.00012936,2]
[408700865,1774146446236,-152.11,0.00012936,2]
[408700866,1774146446257,-250.0,0.00013044,2]
[408700867,1774146446281,-12702.77017134,0.00013109,2]
[408700870,1774146539695,5592.57761662,9.5e-05,3]
[408700871,1774146539717,10000.01,9.5e-05,3]
[408700872,1774146539740,10000.01,9.5e-05,3]
[408700873,1774146539762,10000.01,9.5e-05,3]
[408700874,1774146539784,10000.01,9.5e-05,3]
[408700875,1774146539806,2347.21744356,9.5e-05,3]
[408700883,1774146632404,-340.14858335,0.00013097,2]
[408700893,1774146638471,-81.66373851,0.00013097,2]
[408700894,1774146638481,-258.0,0.00013097,2]
[408700895,1774146638490,-1200.0,0.00013108,2]
[408700896,1774146638499,-175.45832866,0.00013109,2]
[408700897,1774146638508,-250.0,0.00013109,2]
[408700898,1774146638518,-3957.95907362,0.00013109,2]
[408700899,1774146638527,-161.0,0.00013199,2]
[408700900,1774146638536,-150.0,0.000132,2]
[408700901,1774146638545,-500.0,0.00013201,2]
[408700902,1774146638555,-500.0,0.00013201,2]
[408700903,1774146638565,-500.0,0.00013201,2]
[408700904,1774146638574,-500.0,0.00013201,2]
[408700905,1774146638584,-500.0,0.00013201,2]
[408700906,1774146638593,-500.0,0.00013201,2]
[408700907,1774146638603,-500.0,0.00013201,2]
[408700908,1774146638612,-202.1385965,0.00013201,2]
[408700909,1774146638621,-500.0,0.00013201,2]
[408700910,1774146638630,-500.0,0.00013201,2]
[408700912,1774146638640,-500.0,0.00013201,2]
[408700914,1774146638649,-552.06356883,0.00013201,2]
[408700916,1774146638658,-151.0,0.00013201,2]
[408700917,1774146638667,-151.0,0.00013201,2]
[408700918,1774146638677,-151.0,0.00013201,2]
[408700919,1774146638685,-151.0,0.00013201,2]
[408700920,1774146638696,-151.0,0.00013201,2]
[408700921,1774146638706,-151.0,0.00013201,2]
[408700922,1774146638715,-151.0,0.00013201,2]
[408700923,1774146638724,-151.0,0.00013201,2]
[408700924,1774146638734,-151.0,0.00013201,2]
[408700925,1774146638743,-151.0,0.00013201,2]
[408700926,1774146638753,-165.51721301,0.00013201,2]
[408700927,1774146638763,-480.75,0.00013201,2]
[408700928,1774146638773,-151.0,0.00013206,2]
[408700929,1774146638782,-151.0,0.00013206,2]
[408700930,1774146638791,-9999.99,0.00013206,2]
[408700931,1774146638800,-299.99,0.00013206,2]
[408700932,1774146638810,-2394.93,0.00013206,2]
[408700933,1774146638819,-5213.05,0.00013208,2]
[408700934,1774146638829,-7648.2322,0.00013209,2]
[408700935,1774146638838,-152.11,0.00013353,2]
[408700936,1774146638851,-3957.9590736,0.00013419,2]
[408700937,1774146638860,-3240.0,0.00013425,2]
[408700938,1774146638869,-2000.0,0.00013456,2]
[408700939,1774146638879,-480.75,0.00013475,2]
[408700940,1774146638888,-500.0,0.00013493,2]
[408700941,1774146638897,-8020.0,0.00013706,2]
[408700942,1774146638906,-3957.9590736,0.00013729,2]
[408700943,1774146638916,-480.75,0.00013749,2]
[408700944,1774146638926,-152.11,0.00013771,2]
[408700945,1774146638936,-164.46351954,0.00013807,2]
[408700946,1774146638945,-524.0,0.00014,2]
[408700947,1774146638955,-480.75,0.00014023,2]
[408700948,1774146638965,-3957.9590736,0.00014039,2]
[408700949,1774146638974,-164.46351954,0.00014156,2]
[408700950,1774146638984,-152.11,0.00014188,2]
[408700951,1774146638994,-200.82,0.00014188,2]
[408700952,1774146639003,-9315.82110159,0.00014253,2]
[408700953,1774146639165,-359.4103643,0.00014253,2]
[408700957,1774146640678,-2311.10971837,0.00014253,2]
[408700958,1774146640733,-473.93335833,0.00014253,2]
[408700959,1774146640787,-69221.70545741,0.00014253,2]
[408700960,1774146640798,-480.79101582,0.00014297,2]
[408700961,1774146640808,-255.0,0.00014309,2]
[408700962,1774146640820,-3957.9590736,0.00014349,2]
[408700963,1774146640829,-5000.0,0.00014407,2]
[408700964,1774146640839,-1680.0,0.00014419,2]
[408700965,1774146640849,-250.0,0.0001442,2]
[408700966,1774146640858,-250.0,0.0001442,2]
[408700967,1774146640868,-290.44,0.00014498,2]
[408700968,1774146640877,-164.46351954,0.00014505,2]
[408700969,1774146640888,-917.99,0.00014609,2]
[408700970,1774146640897,-500.0,0.0001463,2]
[408700971,1774146640907,-3957.9590736,0.0001466,2]
[408700972,1774146640917,-166.66,0.00014672,2]
[408700973,1774146640926,-847.0,0.0001472,2]
[408700974,1774146640936,-500.0,0.00014816,2]
[408700975,1774146640946,-545.63359517,0.00014816,2]
[408700976,1774146640966,-500.0,0.00014816,2]
[408700977,1774146640978,-500.0,0.00014816,2]
[408700978,1774146640988,-500.0,0.00014816,2]
[408700979,1774146640998,-500.0,0.00014816,2]
[408700980,1774146641009,-500.0,0.00014816,2]
[408700981,1774146641019,-500.0,0.00014816,2]
[408700982,1774146641029,-500.0,0.00014816,2]
[408700983,1774146641039,-500.0,0.00014816,2]
[408700984,1774146641049,-500.0,0.00014816,2]
[408700985,1774146641059,-500.0,0.00014816,2]
[408700986,1774146641070,-205.30981435,0.00014816,2]
[408700987,1774146641080,-164.46351954,0.00014853,2]
[408700988,1774146641091,-3957.9590736,0.0001497,2]
[408700989,1774146641101,-200.82,0.00014976,2]
[408700991,1774146641111,-250.0,0.00015,2]
[408700993,1774146641121,-1042.04499952,0.00015,7]
[408700995,1774146641130,-2000.0,0.00015138,2]
[408700997,1774146641140,-979.16666667,0.00015155,2]
[408700999,1774146641150,-166.66,0.00015156,2]
[408701001,1774146641160,-600.0,0.000152,5]
[408701003,1774146641169,-164.46351954,0.00015202,2]
[408701005,1774146641178,-154.4686056,0.00015215,2]
[408701007,1774146641187,-3957.9590736,0.0001528,2]
[408701009,1774146641196,-1200.0,0.000153,5]
[408701011,1774146641205,-22909.75,0.0001531,2]
[408701013,1774146641215,-9999.99,0.0001531,2]
[408701015,1774146641224,-2108.73,0.0001531,2]
[408701017,1774146641234,-917.99,0.00015339,2]
[408701019,1774146641243,-2403.0,0.0001536,2]
[408701020,1774146641253,-1800.0,0.000154,5]
[408701021,1774146641265,-2403.0,0.00015415,2]
[408701022,1774146641275,-2400.0,0.000155,5]
[408701023,1774146641284,-433.0,0.0001551,2]
[408701024,1774146641294,-476.23065352,0.00015513,2]
[408701025,1774146641305,-164.46351954,0.00015551,2]
[408701026,1774146641316,-168.0,0.00015585,2]
[408701027,1774146641326,-3957.9590736,0.0001559,2]
[408701028,1774146641337,-3000.0,0.000156,5]
[408701029,1774146641346,-900.0,0.00015622,2]
[408701030,1774146641356,-166.66,0.0001564,2]
[408701031,1774146641366,-500.0,0.00015644,2]
[408701032,1774146641376,-160.0,0.0001568,7]
[408701033,1774146641385,-160.0,0.0001568,7]
[408701034,1774146641396,-2029.0,0.000157,2]
[408701035,1774146641406,-600.0,0.000157,5]
[408701036,1774146641416,-168.0,0.00015734,2]
[408701037,1774146641426,-1033.64387573,0.00015756,2]
[408701038,1774146641435,-1000.0,0.00015763,2]
[408701039,1774146641445,-200.82,0.00015765,2]
[408701040,1774146641455,-174.789,0.00015775,2]
[408701041,1774146641464,-3068.936,0.00015775,2]
[408701042,1774146641474,-1000.0,0.00015794,2]
[408701043,1774146641483,-600.0,0.000158,5]
[408701044,1774146641492,-175.99725706,0.000158,2]
[408701045,1774146641502,-2351.0,0.00015861,2]
[408701046,1774146641515,-500.0,0.00015872,2]
[408701047,1774146641525,-1000.0,0.00015883,2]
[408701048,1774146641534,-5000.0,0.00015896,2]
[408701049,1774146641545,-318.72745136,0.00015896,2]
[408701050,1774146641555,-183.17375108,0.00015896,2]
[408701051,1774146641566,-154.38688513,0.00015896,5]
[408701052,1774146641575,-160.0,0.00015898,7]
[408701053,1774146641585,-1000.0,0.00015898,2]
[408701054,1774146641595,-318.72745136,0.00015898,2]
[408701055,1774146641604,-500.0,0.00015899,2]
[408701056,1774146641614,-500.0,0.00015899,2]
[408701057,1774146641623,-500.0,0.00015899,2]
[408701058,1774146641633,-500.0,0.00015899,2]
[408701059,1774146641643,-500.0,0.00015899,2]
[408701060,1774146641653,-500.0,0.00015899,2]
[408701061,1774146641662,-500.0,0.00015899,2]
[408701062,1774146641671,-500.0,0.00015899,2]
[408701063,1774146641680,-500.0,0.00015899,2]
[408701064,1774146641688,-500.0,0.00015899,2]
[408701065,1774146641698,-500.0,0.00015899,2]
[408701066,1774146641708,-500.0,0.00015899,2]
[408701067,1774146641717,-424.34551398,0.00015899,2]
[408701068,1774146641727,-500.0,0.00015899,2]
[408701069,1774146641737,-10000.0,0.000159,2]
[408701070,1774146641747,-164.46351954,0.000159,2]
[408701071,1774146641757,-3957.9590736,0.000159,2]
[408701072,1774146641767,-318.72745136,0.000159,2]
[408701073,1774146641777,-1072.67813318,0.000159,2]
[408701074,1774146641787,-2997.0,0.000159,2]
[408701075,1774146641796,-600.0,0.000159,5]
[408701076,1774146641805,-175.99725706,0.000159,2]
[408701077,1774146641816,-173.0,0.00015973,2]
[408701078,1774146641826,-500.0,0.00015973,2]
[408701079,1774146641835,-500.75202199,0.00015973,2]
[408701080,1774146642059,-500.0,0.00015973,2]
[408701081,1774146642070,-226.84837346,0.00015973,2]
[408701082,1774146642080,-501.68651941,0.00015973,2]
[408701083,1774146642090,-500.41590344,0.00015973,2]
[408701084,1774146642100,-500.81874259,0.00015973,2]
[408701085,1774146642110,-500.0,0.00015973,2]
[408701086,1774146642119,-500.0,0.00015973,2]
[408701087,1774146642129,-399.90719368,0.00015973,2]
[408701088,1774146642138,-500.0,0.00015973,2]
[408701089,1774146642148,-500.0,0.00015973,2]
[408701090,1774146642157,-500.0,0.00015973,2]
[408701091,1774146642167,-500.0,0.00015973,2]
[408701092,1774146642177,-150.0,0.00015983,2]
[408701093,1774146642186,-218.19919069,0.00015986,2]
[408701094,1774146642196,-218.19919069,0.0001599,2]
[408701095,1774146642206,-218.19919069,0.0001599,2]
[408701096,1774146642219,-500.0,0.00015995,2]
[408701097,1774146642229,-500.0,0.00015995,2]
[408701098,1774146642238,-500.0,0.00015995,2]
[408701099,1774146642248,-500.0,0.00015995,2]
[408701100,1774146642258,-465.08474252,0.00015995,2]
[408701101,1774146642272,-500.0,0.00015995,2]
[408701102,1774146642282,-317.55509761,0.00015995,2]
[408701103,1774146642291,-500.0,0.00015995,2]
[408701104,1774146642301,-500.0,0.00015995,2]
[408701105,1774146642311,-242.76501849,0.00015995,2]
[408701106,1774146642321,-500.0,0.00015995,2]
[408701107,1774146642330,-2287.0,0.00015996,5]
[408701108,1774146642341,-85556.3426209,0.00015996,2]
[408701109,1774146642350,-578200.59547755,0.00015996,2]
[408701116,1774146643409,-478.51655685,0.00015996,2]
[408701117,1774146643568,-1192.87523221,0.00015996,2]
[408701118,1774146643676,-1382.08232065,0.00015996,2]
[408701123,1774146646211,-186.07368774,0.000159,2]
[408701124,1774146646221,-7349.64922102,0.00015996,2]
[408701125,1774146646504,-2999.99917479,0.00015996,2]
[408701138,1774147641109,-258.0,0.00013105,2]
[408701139,1774147641132,-300.0,0.00013105,2]
[408701140,1774147641153,-1200.0,0.00013105,2]
[408701141,1774147641174,-300.0,0.00013105,2]
[408701142,1774147641194,-7992.987934,0.00013106,2]
[408701146,1774147831379,-258.0,0.00013106,2]
[408701147,1774147831388,-166.66,0.00013386,2]
[408701148,1774147831397,-236.61450817,0.00013497,2]
[408701149,1774147831426,-63.38549183,0.00013497,2]
[408701150,1774147831435,-1200.0,0.00013497,2]
[408701151,1774147831446,-1426.27850817,0.00013498,2]
[408701152,1774147831480,-912.41800777,0.00013498,2]
[408701153,1774147831536,-69673.98558406,0.00013498,2]
[408701154,1774147831545,-2500.0,0.00013499,2]
[408701155,1774147831554,-2578.24793315,0.00013499,2]
[408701156,1774147831564,-150.0,0.00013589,2]
[408701157,1774147831573,-200.0,0.0001359,2]
[408701158,1774147831584,-151.0,0.0001359,2]
[408701160,1774147831599,-151.0,0.0001359,2]
[408701161,1774147831610,-151.0,0.0001359,2]
[408701162,1774147831619,-151.0,0.0001359,2]
[408701163,1774147831630,-151.0,0.0001359,2]
[408701164,1774147831641,-151.0,0.0001359,2]
[408701165,1774147831652,-151.0,0.0001359,2]
[408701166,1774147831662,-151.0,0.0001359,2]
[408701167,1774147831672,-151.0,0.0001359,2]
[408701168,1774147831681,-151.0,0.0001359,2]
[408701169,1774147831691,-151.0,0.0001359,2]
[408701170,1774147831700,-151.0,0.0001359,2]
[408701171,1774147831710,-151.0,0.0001359,2]
[408701172,1774147831721,-153.0056866,0.0001359,2]
[408701173,1774147831731,-151.0,0.0001359,2]
[408701174,1774147831741,-151.0,0.0001359,2]
[408701175,1774147831753,-151.0,0.0001359,2]
[408701176,1774147831763,-335.95,0.00013598,2]
[408701177,1774147831772,-299.99,0.00013599,2]
[408701178,1774147831781,-150.99,0.00013599,2]
[408701179,1774147831791,-166.66,0.00013668,2]
[408701180,1774147831800,-8373.2356827,0.00013699,2]
[408701181,1774147831811,-784.54454562,0.00013699,2]
[408701184,1774147837553,-842.20977168,0.00013699,2]
[408701185,1774147837562,-2108.73,0.00013699,2]
[408701186,1774147837571,-22909.75,0.00013699,2]
[408701187,1774147837581,-2578.24793307,0.00013766,2]
[408701188,1774147837597,-335.95,0.00013872,2]
[408701189,1774147837609,-166.66,0.0001395,2]
[408701190,1774147837619,-524.0,0.00014,2]
[408701191,1774147837628,-2578.24793307,0.00014033,2]
[408701192,1774147837639,-150.0,0.00014052,2]
[408701193,1774147837648,-1600.0,0.00014104,2]
[408701194,1774147837658,-380.0,0.0001411,2]
[408701195,1774147837668,-200.0,0.00014111,2]
[408701196,1774147837678,-335.95,0.00014145,2]
[408701197,1774147837688,-1847.01,0.00014221,2]
[408701198,1774147837697,-166.66,0.00014232,2]
[408701199,1774147837707,-2578.24793307,0.00014299,2]
[408701201,1774147837716,-155.93002292,0.000144,2]
[408701203,1774147837727,-665.6146703,0.000144,2]
[408701205,1774147837738,-1581.45530678,0.000144,2]
[408701207,1774147837747,-500.0,0.000144,2]
[408701210,1774147837757,-71.30226953,0.00014414,2]
[408701212,1774147837769,-178.69773047,0.00014414,2]
[408701214,1774147837778,-250.0,0.00014416,2]
[408701216,1774147837787,-1224.385715,0.00014416,2]
[408701233,1774147839990,-3775.614285,0.00014416,2]
[408701234,1774147840000,-250.0,0.00014416,2]
[408701235,1774147840009,-300.0,0.00014416,2]
[408701236,1774147840019,-2189.13986618,0.00014417,2]
[408701237,1774147840030,-632.06023281,0.00014417,2]
[408701238,1774147840045,-1096.15175994,0.00014417,2]
[408701239,1774147840056,-511.0,0.00014417,2]
[408701240,1774147840067,-400.37130544,0.00014417,2]
[408701241,1774147840076,-335.95,0.00014419,2]
[408701242,1774147840086,-388.31,0.00014461,2]
[408701243,1774147840095,-166.66,0.00014513,2]
[408701244,1774147840105,-290.44,0.00014544,2]
[408701248,1774147840299,-2578.24793307,0.00014566,2]
[408701249,1774147840310,-10001.22,0.00014575,2]
[408701251,1774147840320,-1001.50433704,0.00014647,2]
[408701252,1774147840330,-363.59094445,0.00014674,2]
[408701253,1774147840340,-335.95101582,0.00014693,2]
[408701254,1774147840349,-255.0,0.00014704,2]
[408701255,1774147840359,-1568.0,0.0001472,2]
[408701256,1774147840369,-1500.0,0.00014723,2]
[408701257,1774147840378,-989.00114467,0.00014779,2]
[408701258,1774147840388,-420.0,0.00014794,2]
[408701259,1774147840398,-500.0,0.00014795,2]
[408701260,1774147840408,-166.66,0.00014795,2]
[408701261,1774147840417,-500.0,0.000148,3]
[408701262,1774147840427,-2578.24793307,0.00014833,2]
[408701263,1774147840437,-1680.0,0.00014846,2]
[408701264,1774147840446,-200.0,0.00014854,2]
[408701265,1774147840456,-163.0,0.0001504,2]
[408701266,1774147840466,-1568.0,0.0001504,2]
[408701267,1774147840475,-2578.24793307,0.000151,2]
[408701268,1774147840484,-979.16666667,0.00015156,2]
[408701269,1774147840495,-160.0,0.00015156,2]
[408701270,1774147840504,-545.63359517,0.00015198,2]
[408701271,1774147840514,-500.0,0.00015198,2]
[408701272,1774147840524,-500.0,0.00015198,2]
[408701273,1774147840533,-500.0,0.00015198,2]
[408701274,1774147840544,-500.0,0.00015198,2]
[408701275,1774147840554,-500.0,0.00015198,2]
[408701276,1774147840563,-500.0,0.00015198,2]
[408701277,1774147840573,-500.0,0.00015198,2]
[408701278,1774147840583,-500.0,0.00015198,2]
[408701279,1774147840597,-500.0,0.00015198,2]
[408701280,1774147840607,-500.0,0.00015198,2]
[408701281,1774147840617,-500.0,0.00015198,2]
[408701282,1774147840627,-205.30981435,0.00015198,2]
[408701283,1774147840638,-600.0,0.000152,5]
[408701284,1774147840649,-154.4686056,0.00015205,2]
[408701285,1774147840658,-1200.0,0.000153,5]
[408701286,1774147840669,-1568.0,0.0001532,2]
[408701287,1774147840678,-2578.24793307,0.00015366,2]
[408701288,1774147840688,-1800.0,0.000154,5]
[408701289,1774147840697,-2400.0,0.000155,5]
[408701290,1774147840707,-168.0,0.00015517,2]
[408701291,1774147840717,-441.31,0.00015599,2]
[408701292,1774147840726,-3000.0,0.000156,5]
[408701293,1774147840736,-823.17178112,0.00015633,2]
[408701294,1774147840746,-2578.24793307,0.00015633,2]
[408701295,1774147840756,-161.0,0.0001564,2]
[408701296,1774147840766,-444.19882872,0.00015644,2]
[408701297,1774147840775,-160.0,0.0001568,7]
[408701298,1774147840785,-160.0,0.0001568,7]
[408701299,1774147840795,-160.0,0.0001568,7]
[408701300,1774147840804,-600.0,0.000157,5]
[408701301,1774147840814,-177.202,0.00015745,2]
[408701302,1774147840825,-3549.696,0.00015745,2]
[408701303,1774147840836,-1000.0,0.00015758,2]
[408701304,1774147840847,-168.0,0.00015765,2]
[408701305,1774147840858,-365.34148584,0.00015768,2]
[408701306,1774147840870,-1000.0,0.00015769,2]
[408701307,1774147840880,-1000.0,0.0001577,2]
[408701308,1774147840890,-1000.0,0.00015787,2]
[408701309,1774147840900,-600.0,0.000158,5]
[408701310,1774147840910,-2409.48650907,0.0001584,2]
[408701311,1774147840919,-1600.0,0.00015867,2]
[408701312,1774147840929,-500.0,0.00015872,2]
[408701313,1774147840939,-2000.0,0.0001589,2]
[408701314,1774147840948,-5000.0,0.00015893,2]
[408701315,1774147840958,-417.67429788,0.00015893,2]
[408701316,1774147840967,-430.00238245,0.00015893,2]
[408701317,1774147840977,-183.17375108,0.00015893,2]
[408701318,1774147840986,-154.38688513,0.00015893,5]
[408701319,1774147840995,-430.00238244,0.00015894,2]
[408701320,1774147841005,-430.00238244,0.00015895,2]
[408701321,1774147841014,-430.00238244,0.00015896,2]
[408701322,1774147841023,-417.67429788,0.00015897,2]
[408701323,1774147841033,-430.00238244,0.00015897,2]
[408701324,1774147841042,-430.00238244,0.00015898,2]
[408701325,1774147841051,-430.00238244,0.00015899,2]
[408701326,1774147841060,-10000.0,0.000159,2]
[408701327,1774147841071,-823.17178112,0.000159,2]
[408701328,1774147841081,-2578.24793307,0.000159,2]
[408701329,1774147841099,-600.0,0.000159,5]
[408701330,1774147841109,-417.67429788,0.000159,2]
[408701331,1774147841119,-430.00238244,0.000159,2]
[408701332,1774147841129,-441.23266206,0.000159,2]
[408701333,1774147841138,-28440.35257301,0.000159,2]
[408701334,1774147841148,-1072.67813318,0.000159,2]
[408701335,1774147841157,-433.0,0.00015913,2]
[408701336,1774147841167,-150.0,0.00015927,2]
[408701337,1774147841176,-1033.64387573,0.00015951,2]
[408701338,1774147841185,-179.46988562,0.00015971,2]
[408701339,1774147841195,-500.0,0.00015971,2]
[408701340,1774147841207,-500.0,0.00015971,2]
[408701341,1774147841216,-500.0,0.00015971,2]
[408701342,1774147841226,-500.0,0.00015971,2]
[408701343,1774147841236,-500.0,0.00015971,2]
[408701344,1774147841247,-500.0,0.00015971,2]
[408701345,1774147841256,-484.49271011,0.00015971,2]
[408701346,1774147841265,-367.95893957,0.00015971,2]
[408701347,1774147841275,-500.0,0.00015971,2]
[408701348,1774147841284,-175.19866784,0.00015971,2]
[408701349,1774147841296,-500.0,0.00015971,2]
[408701350,1774147841306,-180.91871995,0.00015971,2]
[408701351,1774147841318,-500.0,0.00015971,2]
[408701352,1774147841328,-500.0,0.00015971,2]
[408701353,1774147841337,-500.0,0.00015971,2]
[408701354,1774147841346,-500.0,0.00015971,2]
[408701355,1774147841356,-500.0,0.00015971,2]
[408701356,1774147841365,-500.0,0.00015971,2]
[408701357,1774147841374,-500.0,0.00015971,2]
[408701358,1774147841383,-500.0,0.00015971,2]
[408701359,1774147841392,-500.0,0.00015971,2]
[408701360,1774147841401,-500.0,0.00015971,2]
[408701361,1774147841410,-500.0,0.00015971,2]
[408701362,1774147841420,-500.0,0.00015971,2]
[408701363,1774147841430,-500.0,0.00015971,2]
[408701364,1774147841439,-500.0,0.00015971,2]
[408701365,1774147841449,-500.0,0.00015971,2]
[408701366,1774147841457,-500.0,0.00015971,2]
[408701367,1774147841466,-500.0,0.00015971,2]
[408701368,1774147841477,-500.0,0.00015971,2]
[408701369,1774147841486,-500.0,0.00015971,2]
[408701370,1774147841495,-500.0,0.00015971,2]
[408701371,1774147841504,-500.0,0.00015971,2]
[408701372,1774147841514,-500.0,0.00015971,2]
[408701373,1774147841523,-500.0,0.00015971,2]
[408701374,1774147841533,-358.07766068,0.00015971,2]
[408701375,1774147841542,-500.0,0.00015971,2]